bitfinex/quotes_SOLUSD_20250920
["timestamp","ask_amount","ask_price","bid_price","bid_amount"]
[1758391493165,0.72,238.93,238.89,1.4667447]
[1758391493571,4.18550142,238.92,238.89,1.4667447]
[1758391493773,4.18550142,238.92,238.88,0.08883507]
[1758391493774,0.72,238.91,238.88,0.08883507]
[1758391494141,4.18550142,238.92,238.88,1.55557977]
[1758391494358,4.18550142,238.92,238.89,0.66]
[1758391494567,4.18550142,238.92,238.89,1.4667447]
[1758391494776,4.18550142,238.92,238.9,0.66]
[1758391495067,4.90550142,238.92,238.88,1.55557977]
[1758391495272,4.90550142,238.92,238.88,0.08883507]
[1758391495452,4.90550142,238.92,238.88,1.55557977]
[1758391495874,4.90550142,238.92,238.88,2.21557977]
[1758391497875,10.4634873,238.93,238.88,2.21557977]
[1758391498476,0.71,238.92,238.88,2.21557977]
[1758391498679,10.4634873,238.93,238.88,2.21557977]
[1758391498852,15.35881354,238.93,238.88,2.21557977]
[1758391499160,0.71,238.92,238.88,2.21557977]
[1758391499769,14.64881354,238.93,238.88,2.21557977]
[1758391499980,15.35881354,238.93,238.89,0.72]
[1758391500678,14.64881354,238.93,238.89,2.1867447]
[1758391500850,15.35881354,238.93,238.89,2.1867447]
[1758391501046,4.18532624,238.93,238.9,0.72]
[1758391501252,4.18532624,238.93,238.91,0.72]
[1758391501769,4.18532624,238.93,238.89,1.4667447]
[1758391502091,4.18532624,238.93,238.9,0.72]
[1758391502566,4.18532624,238.93,238.88,0.08883507]
[1758391502870,4.89532624,238.93,238.89,2.1367447]
[1758391505281,7.68349123,238.93,238.89,2.1367447]
[1758391505666,18.14680684,238.93,238.89,2.1367447]
[1758391505965,15.35864185,238.93,238.89,2.1367447]
[1758391507481,3.50821696,238.92,238.88,0.08883507]
[1758391507782,1.4667447,238.91,238.88,0.08883507]
[1758391507985,1.4667447,238.9,238.88,0.08883507]
[1758391508384,0.72,238.89,238.88,0.08883507]
[1758391509475,4.90602704,238.89,238.88,0.08883507]
[1758391510882,4.18602704,238.89,238.88,0.08883507]
[1758391512291,4.90602704,238.89,238.88,0.08883507]
[1758391514392,4.18602704,238.89,238.88,0.08883507]
[1758391515479,7.694244,238.89,238.88,0.08883507]
[1758391515885,9.1609887,238.89,238.88,0.08883507]
[1758391516789,41.2809887,238.89,238.88,0.08883507]
[1758391517401,44.37875989,238.89,238.88,0.08883507]
[1758391517864,46.05777431,238.89,238.88,0.08883507]
[1758391518072,42.96000312,238.89,238.88,0.08883507]
[1758391519392,46.05802717,238.89,238.88,0.08883507]
[1758391520283,42.96000312,238.89,238.88,0.08883507]
[1758391520484,46.05771564,238.89,238.88,0.08883507]
[1758391521291,42.96000312,238.89,238.88,0.08883507]
[1758391521872,43.7871205,238.89,238.88,0.08883507]
[1758391522597,46.8838961,238.89,238.88,0.08883507]
[1758391522792,44.09567914,238.89,238.88,0.08883507]
[1758391523093,46.88292071,238.89,238.88,0.08883507]
[1758391524302,11.74905863,238.89,238.88,0.08883507]
[1758391524494,10.46431387,238.91,238.88,0.08883507]
[1758391524495,31.2,238.91,238.88,0.75883507]
[1758391524802,4.18532624,238.93,238.9,2.29386208]
[1758391525000,4.18532624,238.93,238.91,0.67]
[1758391525584,4.18532624,238.93,238.92,0.67]
[1758391526178,4.18515108,238.94,238.92,0.67]
[1758391526403,6.97244565,238.94,238.93,0.72]
[1758391526907,6.97244565,238.94,238.91,0.72]
[1758391527691,17.43532335,238.94,238.91,0.72]
[1758391527888,14.64802878,238.94,238.91,0.72]
[1758391528290,14.64802878,238.94,238.88,0.08883507]
[1758391528291,2.29386208,238.93,238.88,0.08883507]
[1758391528498,5.76072949,238.93,238.88,0.08883507]
[1758391528684,2.29386208,238.93,238.89,0.72]
[1758391529009,16.94189086,238.94,238.9,0.72]
[1758391529187,17.62189086,238.94,238.9,0.72]
[1758391529587,49.06189086,238.94,238.88,2.38269715]
[1758391529802,49.06189086,238.94,238.89,0.72]
[1758391529993,49.74189086,238.94,238.9,0.72]
[1758391534315,2.78622831,238.93,238.88,3.10269715]
[1758391534491,3.46622831,238.93,238.89,0.72]
[1758391534687,2.78622831,238.93,238.88,2.38269715]
[1758391534894,2.78622831,238.93,238.9,0.72]
[1758391535421,4.18550142,238.92,238.9,0.72]
[1758391535600,15.32925497,238.92,238.88,0.80883507]
[1758391535999,14.64925497,238.92,238.89,0.72]
[1758391537145,4.18532055,238.94,238.9,2.29386208]
[1758391537424,4.18698958,238.95,238.93,2.29386208]
[1758391537620,4.18698958,238.95,238.94,3.01386208]
[1758391537792,4.18464295,238.97,238.94,3.01386208]
[1758391537994,4.18464295,238.97,238.95,0.72]
[1758391538833,4.18445058,238.98,238.96,0.72]
[1758391539834,4.18445058,238.98,238.94,2.29386208]
[1758391540040,2.78713969,238.98,238.95,0.72]
[1758391540216,14.64496422,238.99,238.95,0.72]
[1758391540417,2.78713969,238.98,238.95,0.72]
[1758391541435,2.78713969,238.98,238.94,2.29386208]
[1758391541436,3.46713969,238.98,238.94,2.29386208]
[1758391541745,3.46713969,238.98,238.93,3.01386208]
[1758391542239,4.18462568,238.97,238.93,3.01386208]
[1758391543539,4.86462568,238.97,238.93,3.01386208]
[1758391544031,4.18462568,238.97,238.94,0.72]
[1758391544425,4.18462568,238.97,238.95,0.72]
[1758391544737,4.18462568,238.97,238.93,3.01386208]
[1758391544937,4.18462568,238.97,238.94,0.72]
[1758391545727,4.86462568,238.97,238.93,2.29386208]
[1758391545924,4.18497593,238.95,238.93,2.29386208]
[1758391547421,4.18497593,238.95,238.92,0.72]
[1758391547932,4.18497593,238.95,238.92,3.01386208]
[1758391552652,4.18497593,238.95,238.93,0.72]
[1758391552824,4.18497593,238.95,238.93,3.01386208]
[1758391553147,4.18497593,238.95,238.94,0.72]
[1758391554029,14.6464709,238.97,238.94,0.72]
[1758391554848,14.6464709,238.97,238.93,2.29386208]
[1758391555043,10.46184522,238.97,238.92,3.01386208]
[1758391555250,0.68,238.96,238.92,3.01386208]
[1758391555546,0.68,238.96,238.92,0.72]
[1758391555846,0.68,238.96,238.92,3.01386208]
[1758391556045,4.18497593,238.95,238.92,2.29386208]
[1758391556235,4.18497593,238.95,238.93,0.67]
[1758391556558,4.18497593,238.95,238.92,2.96386208]
[1758391557040,4.18497593,238.95,238.93,0.67]
[1758391558952,4.1848008,238.96,238.93,0.67]
[1758391559155,4.1848008,238.96,238.92,2.29386208]
[1758391559340,4.1848008,238.96,238.93,2.96386208]
[1758391560353,14.6464709,238.97,238.93,2.96386208]
[1758391560731,15.3264709,238.97,238.93,2.96386208]
[1758391562948,0.68,238.96,238.93,2.96386208]
[1758391564055,10.46184522,238.97,238.93,2.96386208]
[1758391564258,15.3064709,238.97,238.93,2.96386208]
[1758391564852,4.18462568,238.97,238.94,0.67]
[1758391565737,4.84462568,238.97,238.92,0.67]
[1758391565938,7.62980885,238.97,238.93,0.67]
[1758391566158,9.26367093,238.97,238.9,2.29386208]
[1758391566460,2.95386208,238.96,238.91,0.67]
[1758391566630,2.29386208,238.94,238.89,0.67]
[1758391566837,2.29386208,238.91,238.88,0.08883507]
[1758391567062,0.66,238.9,238.88,0.08883507]
[1758391567839,4.84602365,238.9,238.88,0.08883507]
[1758391568955,4.18602365,238.9,238.88,0.08883507]
[1758391569361,4.84602365,238.9,238.88,0.08883507]
[1758391570554,0.66,238.89,238.88,0.08883507]
[1758391570754,2.95386208,238.89,238.88,0.08883507]
[1758391571245,0.66,238.89,238.88,0.08883507]
[1758391571769,4.84602704,238.89,238.88,0.08883507]
[1758391572762,7.13988912,238.89,238.88,0.08883507]
[1758391574666,6.47988912,238.89,238.88,0.08883507]
[1758391575101,4.18602704,238.89,238.88,0.08883507]
[1758391575591,7.13988912,238.89,238.88,0.08883507]
[1758391577567,6.47988912,238.89,238.88,0.08883507]
[1758391577768,4.18602704,238.89,238.88,0.08883507]
[1758391578067,4.84602704,238.89,238.88,0.08883507]
[1758391578888,2.29386208,238.9,238.88,0.08883507]
[1758391579191,2.95386208,238.9,238.88,0.08883507]
[1758391581095,4.18602704,238.89,238.88,0.08883507]
[1758391582277,2.95386208,238.89,238.88,0.08883507]
[1758391583502,7.13988912,238.89,238.88,0.08883507]
[1758391583997,5.65382722,238.89,238.88,0.08883507]
[1758391585601,6.31382722,238.89,238.88,0.08883507]
[1758391585897,5.65382722,238.89,238.88,0.08883507]
[1758391590495,6.32382722,238.89,238.88,0.08883507]
[1758391590810,5.65382722,238.89,238.88,0.08883507]
[1758391592303,6.32382722,238.89,238.88,0.08883507]
[1758391596187,5.65382722,238.89,238.88,0.08883507]
[1758391596388,6.32382722,238.89,238.88,0.08883507]
[1758391599120,5.65382722,238.89,238.88,0.08883507]
[1758391599793,6.32382722,238.89,238.88,0.08883507]
[1758391600810,4.85602704,238.89,238.88,0.08883507]
[1758391601020,5.65382722,238.89,238.88,0.08883507]
[1758391601517,72.6574811,238.89,238.88,0.08883507]
[1758391601723,75.44098536,238.89,238.88,0.08883507]
[1758391606804,75.44098536,238.89,238.88,1e-08]
[1758391607905,75.44097328,238.89,238.88,1e-08]
[1758391608701,44.24097328,238.89,238.88,1e-08]
[1758391609026,62.90070244,238.89,238.88,1e-08]
[1758391609703,64.57992832,238.89,238.88,1e-08]
[1758391610622,62.90070244,238.89,238.88,1e-08]
[1758391611306,62.06070244,238.89,238.88,1e-08]
[1758391611508,94.10070244,238.89,238.88,1e-08]
[1758391614514,62.06070244,238.89,238.88,1e-08]
[1758391614825,94.10070244,238.89,238.88,1e-08]
[1758391619672,60.59290226,238.89,238.88,1e-08]
[1758391619863,93.43070244,238.89,238.88,1e-08]
[1758391620075,94.10070244,238.89,238.88,1e-08]
[1758391621078,15.12730825,238.89,238.88,0.67000001]
[1758391621285,16.59510843,238.89,238.88,0.67000001]
[1758391621571,48.63510843,238.89,238.88,0.67000001]
[1758391621744,78.36730825,238.89,238.88,0.67000001]
[1758391621947,79.83510843,238.89,238.88,0.67000001]
[1758391624078,78.36730825,238.89,238.88,0.67000001]
[1758391624244,79.83510843,238.89,238.88,0.67000001]
[1758391627171,47.79510843,238.89,238.88,0.67000001]
[1758391627462,79.83510843,238.89,238.88,0.67000001]
[1758391629173,79.83510843,238.89,238.88,1e-08]
[1758391629343,80.48898187,238.89,238.88,1e-08]
[1758391631968,79.02118169,238.89,238.88,1e-08]
[1758391632163,80.48898187,238.89,238.88,1e-08]
[1758391632372,49.28898187,238.89,238.88,1e-08]
[1758391632570,17.24898187,238.89,238.88,1e-08]
[1758391632755,49.28898187,238.89,238.88,1e-08]
[1758391634276,48.63898187,238.89,238.88,0.71000001]
[1758391635272,16.59898187,238.89,238.88,0.71000001]
[1758391635572,48.63898187,238.89,238.88,0.71000001]
[1758391638177,43.57484672,238.89,238.88,0.71000001]
[1758391638566,43.57484672,238.89,238.88,1e-08]
[1758391640273,43.57484672,238.89,238.88,0.71000001]
[1758391641081,43.57484672,238.89,238.88,1e-08]
[1758391642073,43.57484672,238.89,238.88,0.71000001]
[1758391642580,43.57484672,238.89,238.88,1e-08]
[1758391643580,43.57484672,238.89,238.88,0.71000001]
[1758391643877,44.40097438,238.89,238.88,0.71000001]
[1758391644451,50.88259629,238.89,238.88,0.71000001]
[1758391645983,50.88259629,238.89,238.88,1e-08]
[1758391648079,16.54866845,238.89,238.88,0.68000001]
[1758391648266,42.10704654,238.89,238.88,0.68000001]
[1758391648584,43.78584955,238.89,238.88,0.68000001]
[1758391648784,42.10704654,238.89,238.88,0.68000001]
[1758391650997,42.11036193,238.89,238.88,0.68000001]
[1758391651183,44.40428977,238.89,238.88,0.68000001]
[1758391653588,45.11428977,238.89,238.88,1e-08]
[1758391653887,47.40821761,238.89,238.88,1e-08]
[1758391654183,44.40428977,238.89,238.88,1e-08]
[1758391654489,5.88433489,238.89,238.88,0.68000001]
[1758391654691,5.06495941,238.91,238.88,0.68000001]
[1758391654692,2.78350426,238.9,238.88,0.68000001]
[1758391655502,6.96938541,238.9,238.88,0.68000001]
[1758391655675,9.26331325,238.9,238.89,0.68]
[1758391655878,12.36379098,238.9,238.89,0.68]
[1758391656183,12.36379098,238.9,238.88,1e-08]
[1758391656373,2.78350426,238.89,238.88,0.68000001]
[1758391656572,9.26331325,238.9,238.88,0.68000001]
[1758391656978,2.29392784,238.89,238.88,1e-08]
[1758391657997,2.29392784,238.89,238.88,0.68000001]
[1758391659685,6.47995488,238.89,238.88,0.68000001]
[1758391660184,6.47995488,238.89,238.88,1e-08]
[1758391660481,45.11606311,238.89,238.88,1e-08]
[1758391660684,56.00953689,238.89,238.88,1e-08]
[1758391662970,55.29953689,238.89,238.88,1e-08]
[1758391663486,23.25953689,238.89,238.88,1e-08]
[1758391663686,55.29953689,238.89,238.88,1e-08]
[1758391664980,56.00953689,238.89,238.88,1e-08]
[1758391666394,23.96953689,238.89,238.88,1e-08]
[1758391666592,56.00953689,238.89,238.88,1e-08]
[1758391671295,55.29953689,238.89,238.88,1e-08]
[1758391671491,53.00560905,238.89,238.88,1e-08]
[1758391671707,55.29953689,238.89,238.88,1e-08]
[1758391683812,55.29953689,238.89,238.88,0.66000001]
[1758391684111,55.29953689,238.89,238.88,1e-08]
[1758391686019,58.7817139,238.89,238.88,1e-08]
[1758391688916,26.7417139,238.89,238.88,1e-08]
[1758391689121,58.7817139,238.89,238.88,0.66000001]
[1758391689418,55.29953689,238.89,238.88,0.66000001]
[1758391689828,23.25953689,238.89,238.88,0.66000001]
[1758391690001,55.27953689,238.89,238.88,0.66000001]
[1758391690899,23.25953689,238.89,238.88,0.66000001]
[1758391691099,55.27953689,238.89,238.88,0.66000001]
[1758391692011,55.97953689,238.89,238.88,1e-08]
[1758391692631,55.27953689,238.89,238.88,1e-08]
[1758391696331,59.4617139,238.89,238.88,1e-08]
[1758391696630,31.2,238.86,238.81,0.76]
[1758391696809,2.29392784,238.82,238.81,0.76]
[1758391697009,5.0774321,238.82,238.81,0.76]
[1758391698628,9.26468609,238.82,238.81,0.76]
[1758391705716,9.13967581,238.82,238.81,0.1]
[1758391707237,19.6078108,238.82,238.73,12.85559401]
[1758391707534,4.18813083,238.77,238.71,2.288517]
[1758391707732,4.18813083,238.77,238.71,1.56891756]
[1758391708119,4.18813083,238.77,238.71,0.1]
[1758391708324,14.65845792,238.77,238.71,0.1]
[1758391708521,16.12737548,238.77,238.71,0.1]
[1758391708920,1.46891756,238.76,238.71,0.1]
[1758391709327,1.46891756,238.76,238.72,0.67]
[1758391709533,5.65714609,238.77,238.73,0.67]
[1758391709926,5.65714609,238.77,238.74,0.67]
[1758391710122,5.65714609,238.77,238.71,0.1]
[1758391710326,1.46891756,238.76,238.71,0.77]
[1758391710742,1.46891756,238.76,238.72,0.67]
[1758391711351,4.18848167,238.75,238.72,0.67]
[1758391711553,1.67971949,238.76,238.71,0.1]
[1758391711725,4.18827981,238.77,238.73,0.67]
[1758391711928,4.18827981,238.77,238.74,0.67]
[1758391712137,4.18789247,238.79,238.75,0.67]
[1758391712436,43.97668347,238.83,238.75,2.13891756]
[1758391712638,10.47496937,238.79,238.76,0.67]
[1758391712946,4.18725399,238.82,238.76,0.67]
[1758391713146,2.78668581,238.81,238.76,0.67]
[1758391713348,4.18776468,238.8,238.76,0.67]
[1758391713526,6.97445049,238.8,238.77,0.67]
[1758391713726,4.18776468,238.8,238.77,0.67]
[1758391714627,6.97422188,238.8,238.77,0.67]
[1758391714833,4.18776468,238.8,238.77,0.67]
[1758391715655,6.97407391,238.8,238.77,0.67]
[1758391715833,4.18776468,238.8,238.77,0.67]
[1758391716330,4.18776468,238.8,238.75,2.13891756]
[1758391716541,4.18742933,238.81,238.76,0.67]
[1758391716846,5.65634689,238.81,238.76,0.67]
[1758391719054,6.33634689,238.81,238.76,0.67]
[1758391719951,6.33634689,238.81,238.75,1.46891756]
[1758391720250,6.33634689,238.81,238.74,6.32754936]
[1758391722453,6.33634689,238.81,238.74,5.65754936]
[1758391722663,4.86742933,238.81,238.75,6.32735795]
[1758391722848,4.86742933,238.81,238.76,0.67]
[1758391723047,4.18742933,238.81,238.76,0.67]
[1758391723246,2.78606435,238.82,238.77,0.67]
[1758391723564,0.68,238.82,238.78,0.67]
[1758391724458,4.1872543,238.82,238.78,0.67]
[1758391724637,0.68,238.81,238.78,0.67]
[1758391724837,0.68,238.81,238.76,6.32709815]
[1758391725046,0.68,238.81,238.77,0.67]
[1758391731565,0.68,238.81,238.77,4.85812916]
[1758391731769,2.78606435,238.83,238.78,2.13891756]
[1758391731963,0.68,238.84,238.79,0.67]
[1758391732154,3.46606435,238.84,238.8,0.67]
[1758391733848,3.46606435,238.84,238.8,4.85759939]
[1758391734171,2.78606435,238.84,238.78,4.1877902]
[1758391734479,7.65298397,238.84,238.78,6.32670776]
[1758391734670,2.78606435,238.83,238.78,6.32670776]
[1758391734871,3.46606435,238.83,238.79,0.67]
[1758391735169,0.68,238.83,238.79,0.67]
[1758391735769,3.46606435,238.83,238.79,4.85774627]
[1758391735974,0.68,238.83,238.79,4.85774627]
[1758391736373,3.46606435,238.83,238.79,4.85774627]
[1758391736677,3.46606435,238.83,238.79,4.18774627]
[1758391736976,0.68,238.83,238.79,4.90774627]
[1758391737166,0.68,238.83,238.79,6.37666383]
[1758391737470,0.69,238.82,238.79,6.37666383]
[1758391737679,0.69,238.83,238.79,6.37666383]
[1758391739376,0.69,238.83,238.8,0.72]
[1758391739574,0.69,238.83,238.79,5.65666383]
[1758391739775,0.69,238.83,238.79,6.37666383]
[1758391740159,0.69,238.83,238.8,0.72]
[1758391740478,0.69,238.83,238.79,5.65666383]
[1758391740780,6.97663095,238.85,238.8,4.90759604]
[1758391741088,0.69,238.84,238.8,4.90759604]
[1758391742266,2.7898696,238.85,238.81,0.72]
[1758391742758,3.4798696,238.85,238.81,0.72]
[1758391743476,2.7898696,238.85,238.81,0.72]
[1758391743686,0.68,238.84,238.81,4.90742157]
[1758391744071,0.68,238.84,238.81,0.72]
[1758391744389,0.68,238.84,238.8,6.3364696]
[1758391746258,0.68,238.84,238.8,0.68]
[1758391746689,0.68,238.84,238.8,2.14891756]
[1758391747475,0.68,238.84,238.81,0.68]
[1758391747677,0.68,238.84,238.8,1.46891756]
[1758391747878,0.68,238.84,238.8,6.33650855]
[1758391748987,0.68,238.84,238.81,0.68]
[1758391749491,2.78840271,238.86,238.82,0.68]
[1758391749786,0.68,238.86,238.82,2.14891756]
[1758391750763,4.86659319,238.86,238.82,2.14891756]
[1758391751169,4.18659319,238.86,238.82,1.46891756]
[1758391751366,0.68,238.85,238.82,2.14891756]
[1758391752975,3.46742105,238.88,238.83,2.14891756]
[1758391753174,2.78742105,238.88,238.84,2.14891756]
[1758391753401,3.46742105,238.88,238.84,1.46891756]
[1758391753575,3.46742105,238.88,238.85,0.68]
[1758391754193,4.86620552,238.88,238.83,1.46891756]
[1758391754495,6.97362657,238.88,238.84,0.68]
[1758391754678,3.46742105,238.87,238.83,1.46891756]
[1758391754872,3.46742105,238.87,238.83,2.14891756]
[1758391755078,0.68,238.87,238.83,2.14891756]
[1758391755878,4.18620552,238.88,238.83,2.14891756]
[1758391756080,0.68,238.87,238.83,2.14891756]
[1758391757502,4.18620552,238.88,238.83,2.14891756]
[1758391757705,0.68,238.87,238.83,2.14891756]
[1758391759006,0.68,238.87,238.83,0.68]
[1758391759180,0.68,238.87,238.83,2.14891756]
[1758391761597,4.86643401,238.87,238.83,2.14891756]
[1758391762097,0.68,238.86,238.83,2.14891756]
[1758391762414,0.68,238.86,238.83,1.46891756]
[1758391762789,4.86659013,238.86,238.83,1.46891756]
[1758391764105,4.86659013,238.86,238.83,2.14891756]
[1758391764310,0.68,238.86,238.82,1.46891756]
[1758391764692,0.68,238.86,238.82,2.14891756]
[1758391767223,4.8665777,238.86,238.82,2.14891756]
[1758391767840,4.8665777,238.86,238.8,32.02]
[1758391767841,0.7,238.85,238.8,2.29377535]
[1758391768046,0.7,238.84,238.78,2.94377535]
[1758391768234,0.7,238.83,238.78,2.94377535]
[1758391768410,0.7,238.82,238.78,2.94377535]
[1758391769038,4.18717441,238.83,238.79,0.65]
[1758391769245,4.18717441,238.83,238.8,0.65]
[1758391769527,6.97473907,238.85,238.79,2.29377535]
[1758391769712,6.97473907,238.85,238.8,0.65]
[1758391771027,4.18707867,238.83,238.8,0.65]
[1758391771715,4.88707867,238.83,238.8,0.65]
[1758391772912,4.88672807,238.85,238.81,0.65]
[1758391773222,2.78774382,238.84,238.81,0.65]
[1758391773428,3.48774382,238.84,238.81,0.65]
[1758391773732,3.48774382,238.84,238.79,2.29377535]
[1758391773933,3.48774382,238.84,238.8,0.65]
[1758391774632,3.48774382,238.84,238.8,2.94377535]
[1758391774835,2.78774382,238.83,238.8,2.94377535]
[1758391775538,4.88697796,238.84,238.8,2.94377535]
[1758391776844,0.7,238.83,238.8,2.94377535]
[1758391777208,3.48872882,238.83,238.8,2.94377535]
[1758391777425,2.78872882,238.84,238.8,2.94377535]
[1758391777630,0.7,238.84,238.8,2.94377535]
[1758391777956,4.88696167,238.84,238.8,0.65]
[1758391778156,4.88696167,238.84,238.8,2.94377535]
[1758391778345,2.78861324,238.83,238.8,2.94377535]
[1758391779937,0.7,238.89,238.82,2.29377535]
[1758391780131,2.78897289,238.88,238.83,2.94377535]
[1758391780328,2.78897289,238.87,238.84,0.65]
[1758391780531,2.29377535,238.9,238.84,0.65]
[1758391780532,2.78897289,238.86,238.84,0.65]
[1758391780746,2.29377535,238.9,238.84,0.65]
[1758391780747,2.78897289,238.85,238.84,0.65]
[1758391783459,2.78897289,238.85,238.84,2.94377535]
[1758391783661,2.78897289,238.85,238.84,7.13067871]
[1758391783834,2.78897289,238.89,238.84,7.13067871]
[1758391784034,2.78897289,238.88,238.86,2.29377535]
[1758391784231,0.1,238.99,238.89,20.0]
[1758391784437,0.1,238.99,238.98,15.88936936]
[1758391784661,0.1,238.99,238.98,13.59559401]
[1758391784848,0.1,238.99,238.98,51.56451127]
[1758391785164,0.1,238.99,238.98,53.2417656]
[1758391785338,0.1,238.99,238.98,20.7017656]
[1758391785546,0.1,238.99,238.98,57.42621618]
[1758391785744,0.1,238.99,238.98,51.99729892]
[1758391786058,0.1,238.99,238.98,52.61381994]
[1758391788457,0.1,238.99,238.98,65.05655154]
[1758391788743,0.1,238.99,238.98,32.51655154]
[1758391789260,0.1,238.99,238.98,65.05655154]
[1758391791159,0.1,238.99,238.98,62.76277619]
[1758391791458,0.1,238.99,238.98,47.25650695]
[1758391791647,0.1,238.99,238.98,34.81377535]
[1758391792343,0.1,238.99,238.98,2.29377535]
[1758391792543,0.1,238.99,238.98,34.81377535]
[1758391793140,0.1,238.99,238.98,47.60088154]
[1758391793855,0.1,238.99,238.98,15.08088154]
[1758391794050,0.1,238.99,238.98,47.60088154]
[1758391794449,0.1,238.99,238.98,15.08088154]
[1758391794666,0.1,238.99,238.98,47.58088154]
[1758391795468,0.1,238.99,238.98,51.76533212]
[1758391799968,0.1,238.99,238.98,65.36092613]
[1758391800269,0.1,238.99,238.98,35.15470148]
[1758391800474,0.1,238.99,238.98,66.9982508]
[1758391800647,0.1,238.99,238.98,67.0182508]
[1758391801679,0.1,238.99,238.98,34.5382508]
[1758391801860,0.1,238.99,238.98,67.0182508]
[1758391803272,0.1,238.99,238.98,34.5382508]
[1758391803653,0.1,238.99,238.98,66.9982508]
[1758391803852,0.81,238.99,238.98,12.78710619]
[1758391804163,0.81,238.99,238.98,32.48]
[1758391805160,0.81,238.99,238.98,34.77377535]
[1758391805364,0.1,238.99,238.98,47.13606909]
[1758391805962,0.81,238.99,238.98,47.13606909]
[1758391806166,0.81,238.99,238.98,14.65606909]
[1758391806358,0.81,238.99,238.98,47.11606909]
[1758391806860,0.81,238.99,238.98,51.30051967]
[1758391807986,0.81,238.99,238.98,18.84051967]
[1758391808192,0.81,238.99,238.98,51.30051967]
[1758391809063,0.1,238.99,238.98,64.89611368]
[1758391809479,0.81,238.99,238.98,64.89611368]
[1758391810275,0.1,238.99,238.98,64.89611368]
[1758391812703,0.1,238.99,238.98,69.07919959]
[1758391812863,0.1,238.99,238.98,102.57297494]
[1758391813064,0.1,238.99,238.98,71.37297494]
[1758391814060,0.91,239.07,239.02,13.59559401]
[1758391814265,0.91,239.07,239.06,2.29377535]
[1758391814489,0.91,239.07,239.06,34.73377535]
[1758391815286,0.2,239.07,239.06,48.32936936]
[1758391815796,0.91,239.07,239.06,32.46]
[1758391815980,0.91,239.07,239.06,34.75377535]
[1758391817081,0.91,239.07,239.06,38.93682563]
[1758391817311,0.91,239.07,239.06,36.64305028]
[1758391817688,0.2,239.07,239.06,52.53241964]
[1758391820207,0.2,239.07,239.06,20.07241964]
[1758391820397,0.2,239.07,239.06,52.51241964]
[1758391823188,0.2,239.07,239.06,54.1892521]
[1758391823719,3.989231,239.07,239.06,32.44]
[1758391824090,8.1721063,239.07,239.06,32.44]
[1758391824709,3.989231,239.07,239.06,32.44]
[1758391827813,3.989231,239.07,239.06,33.9046444]
[1758391829510,3.989231,239.07,239.06,1.4646444]
[1758391829706,3.989231,239.07,239.06,32.4]
[1758391830528,0.91,239.07,239.06,32.4]
[1758391832520,0.91,239.07,239.05,1.4646444]
[1758391832726,0.2,239.07,239.06,32.4]
[1758391833332,0.9,239.07,239.06,32.4]
[1758391835909,0.9,239.07,239.05,1.4646444]
[1758391836232,0.2,239.07,239.06,32.36]
[1758391836629,0.9,239.07,239.03,5.64820091]
[1758391836925,0.9,239.07,238.84,5.8585776]
[1758391836926,1.4646444,239.05,238.98,12.36229374]
[1758391837233,1.4646444,239.05,238.97,1.4646444]
[1758391837234,2.1646444,239.04,238.99,32.36]
[1758391837409,0.7,239.03,238.99,32.36]
[1758391837609,1.4646444,239.01,238.93,4.18515465]
[1758391837927,0.7,239.0,238.95,1.4646444]
[1758391838134,0.7,238.99,238.95,1.4646444]
[1758391838434,0.7,238.98,238.95,1.4646444]
[1758391838743,0.7,238.97,238.96,32.38]
[1758391840317,0.7,238.99,238.96,32.38]
[1758391841211,0.7,238.99,238.96,33.8446444]
[1758391843433,0.7,238.99,238.97,1.4646444]
[1758391843816,0.7,238.98,238.97,1.4646444]
[1758391844614,0.7,238.98,238.97,33.8246444]
[1758391845135,0.7,239.0,238.97,33.8246444]
[1758391845319,0.7,238.99,238.97,33.8246444]
[1758391845952,0.7,238.98,238.97,38.00927008]
[1758391846271,0.7,239.02,238.97,38.00927008]
[1758391846415,4.18355676,239.04,238.97,38.00927008]
[1758391846744,0.7,239.01,239.0,1.4646444]
[1758391846942,0.7,239.01,239.0,33.8046444]
[1758391847153,0.7,239.01,239.0,32.34]
[1758391850837,4.88392535,239.01,239.0,32.34]